bitfinex/quotes_BTCUSD_20251215
["timestamp","ask_amount","ask_price","bid_price","bid_amount"]
[1765766568971,0.01806403,89457.0,89455.0,0.0069346]
[1765766569376,0.00438403,89457.0,89456.0,0.34209647]
[1765766569582,0.01906403,89457.0,89456.0,0.34209647]
[1765766569766,0.00038403,89457.0,89456.0,0.34209647]
[1765766569962,0.00338403,89457.0,89456.0,0.45260409]
[1765766570163,0.00038403,89457.0,89456.0,0.45260409]
[1765766570727,0.00038403,89457.0,89456.0,0.34209647]
[1765766571169,0.00138403,89457.0,89456.0,0.34209647]
[1765766571590,0.00338403,89457.0,89456.0,0.34209647]
[1765766571794,0.00038403,89457.0,89456.0,0.34809647]
[1765766572000,0.00138403,89457.0,89456.0,0.34809647]
[1765766572204,0.00238403,89457.0,89456.0,0.34809647]
[1765766572786,0.00238403,89457.0,89456.0,0.48638151]
[1765766573197,0.00238403,89457.0,89456.0,0.48792423]
[1765766574460,0.00238403,89457.0,89456.0,0.34963919]
[1765766576577,0.00238403,89457.0,89456.0,0.46014681]
[1765766576822,0.00238403,89457.0,89456.0,0.00754272]
[1765766576823,0.24363513,89457.0,89456.0,0.00754272]
[1765766577476,0.24363513,89457.0,89456.0,0.00915559]
[1765766577681,0.02006403,89457.0,89456.0,0.00915559]
[1765766577889,0.01906403,89457.0,89456.0,0.00315559]
[1765766578093,0.01906403,89457.0,89456.0,0.00254272]
[1765766578094,1.01906403,89457.0,89456.0,0.00254272]
[1765766578311,0.02406403,89457.0,89456.0,0.00254272]
[1765766578508,1.03606403,89457.0,89456.0,0.00254272]
[1765766578915,1.03606403,89457.0,89456.0,0.10349045]
[1765766578916,0.03610403,89457.0,89456.0,0.10349045]
[1765766579070,0.03610403,89457.0,89456.0,0.00254272]
[1765766580469,0.01838403,89457.0,89456.0,0.00254272]
[1765766580678,0.03610403,89457.0,89456.0,0.00254272]
[1765766581729,0.01838403,89457.0,89456.0,0.00254272]
[1765766581966,0.03610403,89457.0,89456.0,0.00254272]
[1765766582189,0.03610403,89457.0,89456.0,0.10349045]
[1765766582344,0.03610403,89457.0,89456.0,0.00254272]
[1765766584863,0.03610403,89457.0,89456.0,0.12297559]
[1765766584864,0.03606403,89457.0,89456.0,0.12297559]
[1765766585064,0.03606403,89457.0,89456.0,0.00415559]
[1765766585605,0.03606403,89457.0,89456.0,0.00254272]
[1765766587558,1.08608242,89457.0,89456.0,0.00254272]
[1765766588700,0.13936403,89457.0,89456.0,0.00254272]
[1765766589087,0.18938242,89457.0,89456.0,0.00254272]
[1765766589292,0.21873068,89457.0,89456.0,0.00254272]
[1765766589520,1.08608242,89457.0,89456.0,0.00254272]
[1765766589727,1.37678242,89457.0,89456.0,0.00254272]
[1765766592843,1.35910242,89457.0,89456.0,0.00254272]
[1765766593045,1.37678242,89457.0,89456.0,0.00254272]
[1765766594657,0.37678242,89457.0,89456.0,0.00254272]
[1765766595034,1.37678242,89457.0,89456.0,0.00254272]
[1765766595687,0.37678242,89457.0,89456.0,0.00254272]
[1765766595894,1.37678242,89457.0,89456.0,0.00254272]
[1765766596899,1.39378168,89457.0,89456.0,0.00254272]
[1765766597073,0.96570242,89457.0,89456.0,0.00254272]
[1765766597309,0.98338242,89457.0,89456.0,0.00254272]
[1765766597439,0.96570242,89457.0,89456.0,0.00254272]
[1765766597629,0.36968403,89457.0,89456.0,0.00254272]
[1765766597830,0.01838403,89457.0,89456.0,0.12297559]
[1765766598073,0.03606403,89457.0,89456.0,0.12297559]
[1765766598518,0.03606403,89457.0,89456.0,0.05090559]
[1765766598769,0.03606403,89457.0,89456.0,0.16141321]
[1765766599147,0.03606403,89457.0,89456.0,0.05090559]
[1765766601573,0.03606403,89457.0,89456.0,0.05081003]
[1765766601940,0.03606403,89457.0,89456.0,0.00406003]
[1765766602634,0.01838403,89457.0,89456.0,0.12288003]
[1765766602831,0.0111763,89475.0,89456.0,0.12288003]
[1765766602832,0.01768,89472.0,89471.0,0.0111768]
[1765766603010,0.01768,89472.0,89471.0,0.00161287]
[1765766603210,0.01768,89472.0,89471.0,0.15582287]
[1765766603541,0.12898,89472.0,89471.0,0.15582287]
[1765766603710,0.01117605,89477.0,89472.0,0.01117668]
[1765766603897,0.22351863,89478.0,89476.0,0.04675]
[1765766604091,0.0111763,89475.0,89472.0,0.08485955]
[1765766604296,0.01117618,89476.0,89472.0,0.08485955]
[1765766604513,0.01117618,89476.0,89475.0,0.04675]
[1765766604753,0.01117618,89476.0,89475.0,0.0695574]
[1765766604937,0.23469531,89478.0,89475.0,0.14324027]
[1765766605284,0.23469531,89478.0,89477.0,0.04675]
[1765766605458,0.01117593,89478.0,89477.0,0.04675]
[1765766605863,0.01117593,89478.0,89477.0,0.04836287]
[1765766606074,0.01217593,89478.0,89477.0,0.12176752]
[1765766606448,0.01768,89480.0,89477.0,0.12176752]
[1765766606628,0.01768,89480.0,89479.0,0.04554]
[1765766607012,0.01768,89480.0,89479.0,0.11715]
[1765766607251,0.01768,89480.0,89477.0,0.08101752]
[1765766607252,0.1113,89478.0,89477.0,0.006]
[1765766607452,0.13323669,89478.0,89477.0,0.006]
[1765766608052,0.1113,89466.0,89465.0,0.07161]
[1765766608352,0.12898,89466.0,89465.0,0.04164341]
[1765766608565,0.01768,89466.0,89465.0,0.15558341]
[1765766609821,0.01868,89466.0,89465.0,0.16558341]
[1765766610230,0.01968,89466.0,89465.0,0.17058341]
[1765766611412,0.002,89466.0,89465.0,0.17058341]
[1765766611614,0.002,89466.0,89465.0,0.19293852]
[1765766612016,0.002,89466.0,89465.0,0.27653798]
[1765766612218,0.002,89466.0,89465.0,0.36548287]
[1765766616000,0.002,89466.0,89465.0,0.34048287]
[1765766616435,0.002,89466.0,89465.0,0.34165766]
[1765766616990,0.002,89466.0,89465.0,0.2580582]
[1765766618599,0.002,89466.0,89465.0,0.34165766]
[1765766619487,0.2234493,89506.0,89494.0,0.01117393]
[1765766619488,0.01117305,89501.0,89494.0,0.01117393]
[1765766619726,0.01117305,89501.0,89498.0,0.01117343]
[1765766619727,0.01768,89500.0,89498.0,0.01117343]
[1765766619938,0.01117293,89502.0,89500.0,0.08032]
[1765766620167,0.01117293,89502.0,89501.0,0.10932348]
[1765766620338,0.02885293,89502.0,89501.0,0.17800348]
[1765766620680,0.01768,89502.0,89501.0,0.17811844]
[1765766621605,0.01768,89502.0,89501.0,0.18011844]
[1765766622259,0.12247243,89506.0,89502.0,0.01117293]
[1765766622464,0.12247243,89506.0,89504.0,0.04526]
[1765766622627,0.02885256,89505.0,89504.0,0.04526]
[1765766622833,0.02885256,89505.0,89504.0,0.11394]
[1765766623850,0.01117206,89509.0,89504.0,0.11394]
[1765766623851,0.01117118,89516.0,89510.0,0.01117193]
[1765766624089,0.02885143,89514.0,89510.0,0.01117193]
[1765766624315,0.01117156,89513.0,89511.0,0.1175684]
[1765766625077,0.23460434,89513.0,89511.0,0.1175684]
[1765766625399,0.23460434,89513.0,89512.0,0.11394]
[1765766625568,0.01117156,89513.0,89512.0,0.11394]
[1765766625736,0.01517156,89513.0,89512.0,0.17938139]
[1765766626362,0.004,89513.0,89512.0,0.17938139]
[1765766626561,0.008,89513.0,89512.0,0.17938139]
[1765766626762,0.004,89513.0,89512.0,0.17938139]
[1765766626962,0.01768,89514.0,89512.0,0.17938139]
[1765766627185,0.01768,89514.0,89513.0,0.18395056]
[1765766627474,0.01768,89514.0,89513.0,0.11527056]
[1765766627684,0.01768,89514.0,89513.0,0.04526]
[1765766628058,0.01868,89514.0,89513.0,0.04526]
[1765766628605,0.01768,89514.0,89513.0,0.04526]
[1765766628957,0.01868,89514.0,89513.0,0.04926]
[1765766629462,0.01868,89514.0,89513.0,0.05026]
[1765766629847,0.01868,89514.0,89513.0,0.11894]
[1765766630429,0.01868,89514.0,89513.0,0.005]
[1765766631050,0.001,89514.0,89513.0,0.05026]
[1765766631329,0.001,89514.0,89513.0,0.25522504]
[1765766631330,0.01868,89514.0,89513.0,0.25522504]
[1765766632373,0.001,89514.0,89513.0,0.25522504]
[1765766632573,0.01868,89514.0,89513.0,0.33005948]
[1765766634855,0.03706,89514.0,89513.0,0.005]
[1765766635032,0.14836,89514.0,89513.0,0.005]
[1765766635431,0.12998,89514.0,89513.0,0.005]
[1765766639175,0.13159287,89514.0,89513.0,0.005]
[1765766639422,0.02029287,89514.0,89513.0,0.005]
[1765766639775,0.13159287,89514.0,89513.0,0.005]
[1765766643352,0.21837126,89514.0,89513.0,0.005]
[1765766643563,1.21837126,89514.0,89513.0,0.005]
[1765766644200,0.18161126,89514.0,89513.0,0.005]
[1765766644410,0.18161126,89514.0,89513.0,0.11885]
[1765766644411,0.02029287,89514.0,89513.0,0.11885]
[1765766644630,0.02029287,89514.0,89513.0,0.13533622]
[1765766644878,0.02029287,89514.0,89513.0,0.13433622]
[1765766645102,0.03029287,89514.0,89513.0,0.13533622]
[1765766645307,0.03029287,89514.0,89513.0,0.005]
[1765766645308,0.15997287,89514.0,89513.0,0.005]
[1765766645512,0.15997287,89514.0,89513.0,0.001]
[1765766645513,0.15897287,89514.0,89513.0,0.001]
[1765766645709,0.14759287,89514.0,89513.0,0.002]
[1765766645914,0.13759287,89514.0,89513.0,0.01818016]
[1765766646260,0.13459287,89514.0,89513.0,0.01718016]
[1765766646474,0.13559287,89514.0,89513.0,0.02018016]
[1765766647690,0.13159287,89514.0,89513.0,0.02018016]
[1765766647894,0.02029287,89514.0,89513.0,0.13403016]
[1765766648093,0.13159287,89514.0,89513.0,0.13403016]
[1765766648297,0.13159287,89514.0,89513.0,0.06634016]
[1765766648709,0.13159287,89514.0,89513.0,0.02018016]
[1765766649716,0.12998,89514.0,89513.0,0.02018016]
[1765766650285,0.35340873,89514.0,89513.0,0.02018016]
[1765766650874,0.01868,89514.0,89513.0,0.02018016]
[1765766651070,0.01868,89514.0,89513.0,0.13403016]
[1765766652340,0.01868,89514.0,89513.0,0.04916]
[1765766653099,0.01868,89514.0,89513.0,0.27259123]
[1765766653748,0.01868,89514.0,89513.0,0.04916]
[1765766654743,0.001,89514.0,89513.0,0.04916]
[1765766654945,0.001,89514.0,89513.0,0.13919312]
[1765766655152,0.001,89514.0,89513.0,0.22809661]
[1765766656034,0.01116956,89529.0,89518.0,0.01117093]
[1765766656035,0.01768,89521.0,89518.0,0.01117093]
[1765766656246,0.01768,89521.0,89520.0,0.22341376]
[1765766656472,0.22338639,89531.0,89528.0,0.03484]
[1765766656682,0.01768,89529.0,89528.0,0.03484]
[1765766656894,0.01768,89529.0,89528.0,0.10253]
[1765766657118,0.01768,89529.0,89528.0,0.21814386]
[1765766657795,0.01116869,89536.0,89530.0,0.01116944]
[1765766658003,0.23455095,89533.0,89531.0,0.04616]
[1765766658208,0.23455095,89533.0,89531.0,0.0725442]
[1765766658426,0.23455095,89533.0,89528.0,0.001]
[1765766658427,0.2233913,89529.0,89528.0,0.001]
[1765766658830,0.3346894,89530.0,89528.0,0.002]
[1765766658944,0.008,89529.0,89528.0,0.001]
[1765766659354,0.3346894,89530.0,89528.0,0.001]
[1765766659355,0.1113,89530.0,89528.0,0.04616]
[1765766659551,0.1113,89530.0,89528.0,0.04716]
[1765766659809,0.007,89529.0,89528.0,0.04716]
[1765766660855,0.009,89529.0,89528.0,0.04716]
[1765766661066,0.1113,89530.0,89528.0,0.13628504]
[1765766661272,0.1193,89530.0,89528.0,0.13728504]
[1765766661477,0.009,89529.0,89528.0,0.13828504]
[1765766661680,0.009,89529.0,89528.0,0.13728504]
[1765766662087,0.017,89529.0,89528.0,0.13828504]
[1765766662289,0.008,89529.0,89528.0,0.13728504]
[1765766662676,0.008,89529.0,89528.0,0.18919187]
[1765766663438,0.008,89529.0,89528.0,0.19019187]
[1765766663761,0.008,89529.0,89528.0,0.18919187]
[1765766664163,0.017,89529.0,89528.0,0.19019187]
[1765766664510,0.03468,89529.0,89528.0,0.19019187]
[1765766666075,0.03468,89529.0,89528.0,0.30404187]
[1765766666491,0.03468,89529.0,89528.0,0.23635187]
[1765766666702,0.03468,89529.0,89528.0,0.30945187]
[1765766667053,0.05467287,89529.0,89528.0,0.13828504]
[1765766667471,0.05467287,89529.0,89528.0,0.002]
[1765766667665,0.16597287,89529.0,89528.0,0.002]
[1765766669993,0.14759287,89529.0,89528.0,0.002]
[1765766671844,0.16597287,89529.0,89528.0,0.002]
[1765766673464,0.03629287,89529.0,89528.0,0.002]
[1765766675169,0.21226837,89529.0,89528.0,0.002]
[1765766675367,0.21226837,89529.0,89501.0,0.05967977]
[1765766675368,0.21226837,89529.0,89481.0,0.03463]
[1765766675369,0.33477117,89497.0,89481.0,0.03463]
[1765766675605,0.37083117,89497.0,89496.0,0.00035201]
[1765766675768,0.35245117,89497.0,89496.0,0.00035201]
[1765766675968,0.37083117,89497.0,89496.0,0.00035201]
[1765766676616,0.38921117,89497.0,89496.0,0.00035201]
[1765766676776,0.39721117,89497.0,89496.0,0.00135201]
[1765766677671,0.39021117,89497.0,89496.0,0.00435201]
[1765766677920,0.37983117,89497.0,89496.0,0.00535201]
[1765766678121,0.39721117,89497.0,89496.0,0.00135201]
[1765766678496,0.40321117,89497.0,89496.0,0.00235201]
[1765766681179,0.23747117,89497.0,89496.0,0.00235201]
[1765766681384,0.25515117,89497.0,89496.0,0.00235201]
[1765766681559,0.36645117,89497.0,89496.0,0.00235201]
[1765766683101,0.40321117,89497.0,89496.0,0.00235201]
[1765766683640,0.38483117,89497.0,89496.0,0.00235201]
[1765766684324,0.29191117,89497.0,89496.0,0.00235201]
[1765766684528,0.25515117,89497.0,89496.0,0.00235201]
[1765766684729,0.25515117,89497.0,89496.0,0.04785201]
[1765766684930,0.25515117,89497.0,89496.0,0.00235201]
[1765766685771,0.014,89497.0,89496.0,0.02425917]
[1765766685978,0.03168,89497.0,89496.0,0.13901917]
[1765766687634,0.014,89497.0,89496.0,0.16136653]
[1765766688757,0.008,89497.0,89496.0,0.16036653]
[1765766689173,0.009,89497.0,89496.0,0.16636653]
[1765766689346,0.001,89497.0,89496.0,0.16536653]
[1765766689544,0.002,89497.0,89496.0,0.17036653]
[1765766690599,0.002,89497.0,89496.0,0.3938402]
[1765766690790,0.002,89497.0,89496.0,0.37149284]
[1765766691540,0.002,89497.0,89496.0,0.14801917]
[1765766693820,0.002,89497.0,89496.0,0.14763705]
[1765766695005,0.002,89497.0,89496.0,0.19313705]
[1765766695254,0.002,89497.0,89496.0,0.26239705]
[1765766700942,0.002,89497.0,89496.0,0.14763705]
[1765766700943,0.02038,89497.0,89496.0,0.14763705]
[1765766701109,0.03876,89497.0,89496.0,0.14763705]
[1765766701319,0.02038,89497.0,89496.0,0.14763705]
[1765766701759,0.13168,89497.0,89496.0,0.14763705]
[1765766702325,0.13068,89497.0,89496.0,0.14263705]
[1765766702739,0.13068,89497.0,89496.0,0.14463705]
[1765766702945,0.02885293,89502.0,89496.0,0.14463705]
[1765766702946,0.01117206,89509.0,89505.0,0.01117256]
[1765766703155,0.01117206,89509.0,89496.0,0.29700947]
[1765766703156,0.30908,89518.0,89496.0,0.29700947]
[1765766703157,0.01117106,89517.0,89512.0,0.01117168]
[1765766703364,0.01117056,89521.0,89512.0,0.01117168]
[1765766703365,0.22341419,89520.0,89516.0,0.08311]
[1765766703651,0.22341419,89520.0,89519.0,0.04773]
[1765766703862,0.01117056,89521.0,89519.0,0.06521126]
[1765766704008,0.01117056,89521.0,89519.0,0.01748126]
[1765766704009,0.23458345,89521.0,89519.0,0.01748126]
[1765766704214,0.23458345,89521.0,89516.0,0.04655118]
[1765766704215,0.01117068,89520.0,89516.0,0.04655118]
[1765766704428,0.23458345,89521.0,89510.0,0.03538]
[1765766704429,0.01117118,89516.0,89510.0,0.03538]
[1765766704604,0.003,89517.0,89500.0,0.03538]
[1765766704605,0.01117268,89504.0,89500.0,0.03538]
[1765766704804,0.01117268,89504.0,89497.0,0.37092849]
[1765766704805,0.01117318,89500.0,89497.0,0.13628504]
[1765766705065,0.01117231,89507.0,89503.0,0.04773]
[1765766705225,0.02885243,89506.0,89503.0,0.1282628]
[1765766705533,0.01768,89506.0,89503.0,0.1282628]
[1765766705748,0.01768,89506.0,89504.0,0.2234537]
[1765766707144,0.01868,89506.0,89504.0,0.2304537]
[1765766708075,0.01868,89506.0,89504.0,0.007]
[1765766708272,0.01868,89506.0,89504.0,0.23045258]
[1765766708474,0.01868,89506.0,89505.0,0.13628504]
[1765766708675,0.12998,89506.0,89505.0,0.13628504]
[1765766708907,0.14836,89506.0,89505.0,0.13628504]
[1765766709089,0.14836,89506.0,89504.0,0.007]
[1765766709090,0.38476959,89505.0,89504.0,0.007]
[1765766709300,0.42152959,89505.0,89504.0,0.007]
[1765766709495,0.33477117,89497.0,89496.0,0.00035201]
[1765766709988,0.1113,89497.0,89496.0,0.00035201]
[1765766710251,0.23462376,89505.0,89496.0,0.00035201]
[1765766710252,0.001,89506.0,89505.0,0.2234512]
[1765766710415,0.01868,89506.0,89505.0,0.3065612]
[1765766710648,0.01868,89506.0,89505.0,0.3759212]
[1765766710790,0.01868,89506.0,89505.0,0.44144547]
[1765766710791,0.01768,89506.0,89505.0,0.44144547]
[1765766711204,0.33471833,89519.0,89515.0,0.01117131]
[1765766711205,0.01117081,89519.0,89515.0,0.01117131]
[1765766711419,0.01768,89518.0,89515.0,0.01117131]
[1765766712068,0.02885093,89518.0,89515.0,0.01117131]
[1765766712758,0.22342124,89517.0,89515.0,0.001]
[1765766713004,0.22342124,89517.0,89516.0,0.02467808]
[1765766713232,0.22342124,89517.0,89515.0,0.001]
[1765766713233,1.17969839,89516.0,89515.0,0.001]
[1765766713473,1.17969839,89516.0,89515.0,0.002]
[1765766713474,1.47039839,89516.0,89515.0,0.002]
[1765766713702,1.48877839,89516.0,89515.0,0.002]
[1765766713917,1.48877839,89516.0,89496.0,0.00035201]
[1765766713918,0.1113,89497.0,89496.0,0.00035201]
[1765766714153,1.19737839,89497.0,89496.0,0.00035201]
[1765766714375,0.19737839,89497.0,89496.0,0.00035201]
[1765766715277,0.17899839,89497.0,89496.0,0.00035201]
[1765766716047,0.18699839,89497.0,89496.0,0.00935201]
[1765766716240,0.17999839,89497.0,89496.0,0.00835201]
[1765766716443,0.17899839,89497.0,89496.0,0.00035201]
[1765766716636,0.17999839,89497.0,89496.0,0.00935201]
[1765766716840,0.18099839,89497.0,89496.0,0.00935201]
[1765766717861,0.16331839,89497.0,89496.0,0.00935201]
[1765766718067,0.18099839,89497.0,89496.0,0.00935201]
[1765766718487,0.19937839,89497.0,89496.0,0.00935201]
[1765766718691,1.21775839,89497.0,89496.0,0.00935201]
[1765766719485,1.21675839,89497.0,89496.0,0.00435201]
[1765766719811,1.21675839,89497.0,89496.0,0.00535201]
[1765766720013,1.22175839,89497.0,89496.0,0.00135201]
[1765766720169,1.22775839,89497.0,89496.0,0.00235201]
[1765766723393,0.41925839,89497.0,89496.0,0.00235201]
[1765766723795,1.22775839,89497.0,89496.0,0.00235201]
[1765766724200,0.77795839,89497.0,89496.0,0.00235201]
[1765766724403,0.49065839,89497.0,89496.0,0.00235201]
[1765766724760,1.17095839,89497.0,89496.0,0.00235201]
[1765766725169,0.49645839,89497.0,89496.0,0.00235201]
[1765766725832,0.35115839,89497.0,89496.0,0.00235201]
[1765766726090,0.07969839,89497.0,89496.0,0.11944201]
[1765766726297,0.03010815,89515.0,89496.0,0.11944201]
[1765766726298,0.01117156,89513.0,89508.0,0.01117218]
[1765766726496,0.01838,89533.0,89508.0,0.01117218]
[1765766726497,0.01117081,89519.0,89515.0,0.08311]
[1765766726690,0.23457689,89523.0,89517.0,0.01117106]
[1765766726691,0.34587689,89523.0,89517.0,0.01117106]
[1765766726891,0.01117081,89519.0,89516.0,0.10757612]
[1765766727050,0.01117081,89519.0,89516.0,0.07357]
[1765766727232,0.01117093,89518.0,89515.0,0.03538]
[1765766727568,0.12247143,89514.0,89511.0,0.01117181]
[1765766727783,0.01768,89513.0,89511.0,0.01117181]
[1765766728532,0.01768,89513.0,89509.0,0.23461114]
[1765766728789,0.01768,89513.0,89510.0,0.07005463]
[1765766729096,0.01868,89513.0,89511.0,0.003]
[1765766729439,0.01768,89513.0,89511.0,0.001]
[1765766729694,0.01868,89513.0,89510.0,0.07005463]
[1765766730030,0.01868,89513.0,89510.0,0.07105463]
[1765766730255,0.1113,89511.0,89510.0,0.001]
[1765766730571,0.25328494,89513.0,89510.0,0.001]
[1765766730778,0.25228494,89513.0,89510.0,0.001]
[1765766731289,0.25328494,89513.0,89511.0,0.002]
[1765766731907,1.51632508,89512.0,89511.0,0.002]
[1765766732118,1.51632508,89512.0,89496.0,0.00035201]
[1765766732119,1.45201839,89497.0,89496.0,0.00035201]
[1765766732364,1.45201839,89497.0,89480.0,1.0]
[1765766732365,1.34071839,89481.0,89480.0,1.0]
[1765766732578,1.66822801,89481.0,89480.0,1.0]
[1765766732774,1.75403814,89481.0,89480.0,1.0]
[1765766732992,1.76448166,89481.0,89480.0,1.0]
[1765766733205,1.76448165,89481.0,89480.0,1.0]
[1765766733648,1.86454576,89481.0,89480.0,1.0]
[1765766733824,1.88134429,89481.0,89480.0,1.0]
[1765766734022,1.77083667,89481.0,89480.0,1.0]
[1765766734643,1.77783667,89481.0,89480.0,1.001]
[1765766734845,1.86527357,89481.0,89480.0,0.33782309]
[1765766735047,1.87427357,89481.0,89480.0,0.10350754]
[1765766735411,1.87427357,89481.0,89480.0,0.07095433]
[1765766735412,1.99278119,89481.0,89480.0,0.07095433]
[1765766735628,1.90877171,89481.0,89480.0,0.07095433]
[1765766736069,1.91038458,89481.0,89480.0,0.07095433]
[1765766736728,1.94396493,89481.0,89480.0,0.07095433]
[1765766736953,0.94396493,89481.0,89480.0,0.07095433]
[1765766737183,1.94396493,89481.0,89480.0,0.07095433]
[1765766738330,1.94396493,89481.0,89480.0,0.07143824]
[1765766738604,2.01721165,89481.0,89480.0,0.07143824]
[1765766738848,1.91710914,89481.0,89480.0,0.07143824]
[1765766739082,1.90670403,89481.0,89480.0,0.07143824]
[1765766739300,1.90285044,89481.0,89480.0,0.07143824]
[1765766747178,0.90285044,89481.0,89480.0,0.07143824]
[1765766747355,2.02375223,89481.0,89480.0,0.07143824]
[1765766747545,2.01335806,89481.0,89480.0,0.07143824]
[1765766749369,2.02375103,89481.0,89480.0,0.07143824]
[1765766750213,1.02375041,89481.0,89480.0,0.07143824]
[1765766750442,2.01335806,89481.0,89480.0,0.07143824]
[1765766750621,2.02375017,89481.0,89480.0,0.07143824]
[1765766751199,1.02375017,89481.0,89480.0,0.07143824]
[1765766751429,2.02375017,89481.0,89480.0,0.07143824]
[1765766752614,2.01335806,89481.0,89480.0,0.07143824]
[1765766753066,2.02375022,89481.0,89480.0,0.07143824]
[1765766753283,1.13931219,89481.0,89480.0,0.07143824]
[1765766753484,1.41291943,89481.0,89480.0,0.07143824]
[1765766754451,1.41291943,89481.0,89450.0,0.427]
[1765766754452,0.33481363,89456.0,89450.0,0.427]
[1765766754651,1.35249363,89456.0,89450.0,0.427]
[1765766755247,1.69321202,89456.0,89450.0,0.427]
[1765766755694,1.69321202,89456.0,89455.0,0.05194093]
[1765766755695,0.33681363,89456.0,89455.0,0.05194093]
[1765766755967,0.33681363,89456.0,89455.0,0.05294093]
[1765766755968,0.35849363,89456.0,89455.0,0.05294093]
[1765766756676,1.40651202,89456.0,89455.0,0.0079346]
[1765766756874,1.40651202,89456.0,89455.0,0.0089346]
[1765766757013,1.40651202,89456.0,89455.0,0.0079346]
[1765766757213,0.8336536,89456.0,89455.0,0.0079346]
[1765766757411,0.2412536,89456.0,89455.0,0.05142806]
[1765766758086,0.33481363,89456.0,89455.0,0.05304093]
[1765766758291,1.35249363,89456.0,89455.0,0.00854747]
[1765766758486,1.35449363,89456.0,89455.0,0.00854747]
[1765766758689,1.35549363,89456.0,89455.0,0.00854747]
[1765766758909,1.35249363,89456.0,89455.0,0.00854747]
[1765766759252,1.35449363,89456.0,89455.0,0.00854747]
[1765766759660,1.35249363,89456.0,89455.0,0.00854747]
[1765766759846,1.35249363,89456.0,89455.0,0.05285857]
[1765766760234,1.35249363,89456.0,89455.0,0.00769095]
[1765766760235,1.40451202,89456.0,89455.0,0.00769095]
[1765766760425,1.69521202,89456.0,89455.0,0.00769095]
[1765766760564,1.70665224,89456.0,89455.0,0.00769095]
[1765766765412,1.74679645,89456.0,89455.0,0.00769095]
[1765766765645,1.70665224,89456.0,89455.0,0.00769095]
[1765766766017,1.76545365,89456.0,89455.0,0.00769095]
[1765766766381,1.61793137,89456.0,89455.0,0.00869095]
[1765766766585,1.70665224,89456.0,89455.0,0.00869095]
[1765766766789,1.70865224,89456.0,89455.0,0.00869095]
[1765766767009,1.70665224,89456.0,89455.0,0.00869095]
[1765766767451,1.70965224,89456.0,89455.0,0.00869095]
[1765766767614,1.70665224,89456.0,89455.0,0.00769095]
[1765766767818,1.71065224,89456.0,89455.0,0.00869095]
[1765766768017,1.70765224,89456.0,89455.0,0.00869095]
[1765766768537,1.70965224,89456.0,89455.0,0.00869095]
[1765766768905,1.82015986,89456.0,89455.0,0.00869095]
[1765766769380,1.82015986,89456.0,89450.0,0.427]
[1765766769381,1.67554451,89451.0,89450.0,0.427]
[1765766769535,1.68598473,89451.0,89450.0,0.427]
[1765766769730,0.68598473,89451.0,89450.0,0.427]
[1765766770099,1.68598473,89451.0,89450.0,0.427]
[1765766770678,1.72815847,89451.0,89450.0,0.42706862]
[1765766770873,1.69098473,89451.0,89450.0,0.42806862]
[1765766771568,1.80149235,89451.0,89450.0,1e-08]
[1765766772262,1.80149235,89451.0,89439.0,9e-05]
[1765766772263,0.67557201,89440.0,89439.0,9e-05]
[1765766772469,1.70380739,89440.0,89439.0,9e-05]
[1765766772670,1.68612739,89440.0,89439.0,9e-05]
[1765766772808,1.70380739,89440.0,89439.0,9e-05]
[1765766773704,1.70980739,89440.0,89439.0,0.00109]
[1765766773912,1.70380739,89440.0,89439.0,9e-05]
[1765766774473,0.74277541,89440.0,89439.0,9e-05]
[1765766774600,0.74277541,89440.0,89439.0,0.02619281]
[1765766774601,0.02479516,89440.0,89439.0,0.02619281]
[1765766775035,0.02079516,89440.0,89439.0,0.02519281]
[1765766775242,0.13203519,89440.0,89439.0,0.02519281]
[1765766775613,0.01979516,89440.0,89439.0,0.00318711]
[1765766775746,0.13103519,89440.0,89439.0,0.04996711]
[1765766775945,0.11435519,89440.0,89439.0,0.04996711]
[1765766776176,0.13207519,89440.0,89439.0,0.04996711]
[1765766776534,0.13207519,89440.0,89439.0,0.2735832]
[1765766776741,0.13207519,89440.0,89439.0,0.33460564]
[1765766776943,0.13207519,89440.0,89439.0,0.28782564]
[1765766777148,0.02083516,89440.0,89439.0,0.06420955]
[1765766777349,0.13007519,89440.0,89439.0,0.06320955]
[1765766778384,0.13007519,89440.0,89439.0,0.00218711]
[1765766778590,0.13007519,89440.0,89439.0,0.01118711]
[1765766778809,0.13107519,89440.0,89439.0,0.02118711]
[1765766779215,0.35468878,89440.0,89439.0,0.02118711]
[1765766779552,1.35468878,89440.0,89439.0,0.02118711]
[1765766779760,0.85738878,89440.0,89439.0,0.02118711]
[1765766779985,0.85738878,89440.0,89439.0,0.01957424]
[1765766779986,1.19810717,89440.0,89439.0,0.01957424]
[1765766780188,1.19810717,89440.0,89400.0,0.04073843]
[1765766780189,1.56437199,89424.0,89389.0,0.03489]
[1765766780397,1.59254308,89424.0,89389.0,0.03489]
[1765766780635,1.74501028,89424.0,89386.0,2.14393939]
[1765766781270,1.74501028,89424.0,89386.0,2.15512682]
[1765766781476,1.72729028,89424.0,89387.0,0.0111873]
[1765766781679,1.74501028,89424.0,89387.0,0.0111873]
[1765766781880,1.74501028,89424.0,89388.0,0.01118718]
[1765766782052,1.75101028,89424.0,89423.0,0.428]
[1765766782493,1.70849654,89424.0,89423.0,0.428]
[1765766782700,1.72621654,89424.0,89423.0,0.428]
[1765766782906,1.73421654,89424.0,89423.0,0.429]
[1765766783338,1.76427292,89424.0,89423.0,0.429]
[1765766783474,1.73421654,89424.0,89423.0,0.429]
[1765766783672,1.87478215,89424.0,89423.0,0.429]
[1765766784107,1.87478216,89424.0,89423.0,0.429]
[1765766784348,1.71649654,89424.0,89423.0,0.429]
[1765766784511,1.73421654,89424.0,89423.0,0.429]
[1765766785822,1.73421654,89424.0,89423.0,0.42948435]
[1765766786024,1.71649654,89424.0,89423.0,0.42948435]
[1765766786206,1.73421654,89424.0,89423.0,0.42948435]
[1765766788216,1.84472416,89424.0,89423.0,0.42948435]
[1765766789461,1.73421654,89424.0,89423.0,0.42948435]
[1765766790711,1.76781739,89424.0,89423.0,0.42948435]
[1765766794492,0.014,89424.0,89423.0,0.43109722]
[1765766794692,0.014,89424.0,89423.0,0.54844722]
[1765766794903,0.014,89424.0,89423.0,0.51528099]
[1765766795117,0.12524003,89424.0,89423.0,0.51528099]
[1765766795330,0.11124003,89424.0,89423.0,0.42909722]
[1765766795735,0.12324003,89424.0,89423.0,0.43109722]
[1765766795899,0.11724003,89424.0,89423.0,0.43009722]
[1765766796216,0.11424003,89424.0,89423.0,0.43009722]